fUST/lending_fUST_20250802
["ID","MTS","AMOUNT","RATE_DAILY","PERIOD"]
[376689324,1754080256409,-151.0,0.000249,7]
[376689325,1754080256419,-151.0,0.000249,7]
[376689326,1754080256432,-151.0,0.000249,7]
[376689327,1754080256442,-151.0,0.000249,7]
[376689328,1754080256452,-151.0,0.000249,7]
[376689329,1754080256463,-151.0,0.000249,7]
[376689330,1754080256473,-151.0,0.000249,7]
[376689331,1754080256483,-151.0,0.000249,7]
[376689332,1754080256492,-405.578209,0.000249,7]
[376689333,1754080256507,-405.578209,0.000249,7]
[376689334,1754080256518,-379620.005879,0.000249,2]
[376689335,1754080256528,-151.0,0.000249,7]
[376689336,1754080256539,-244.637201,0.000249,7]
[376689337,1754080256549,-267.0,0.00024914,6]
[376689338,1754080256558,-1954.74,0.00024934,2]
[376689339,1754080256568,-460.0,0.00024935,2]
[376689340,1754080256577,-677.77,0.00024935,2]
[376689341,1754080256586,-460.0,0.00024935,2]
[376689342,1754080256596,-3224.74,0.00024937,2]
[376689343,1754080256605,-500.0,0.00024954,2]
[376689344,1754080256615,-153.0,0.00024969,2]
[376689345,1754080256625,-153.0,0.00024969,2]
[376689346,1754080256633,-153.0,0.00024969,2]
[376689347,1754080256643,-153.0,0.00024969,2]
[376689348,1754080256653,-153.0,0.00024969,2]
[376689349,1754080256662,-151.0,0.00024979,2]
[376689350,1754080256671,-151.0,0.00024979,2]
[376689351,1754080256681,-151.0,0.00024979,2]
[376689352,1754080256691,-151.0,0.00024979,2]
[376689353,1754080256700,-151.0,0.00024979,2]
[376689354,1754080256710,-501.86393037,0.00024979,2]
[376689355,1754080256719,-151.0,0.00024979,2]
[376689356,1754080256728,-151.0,0.00024979,2]
[376689357,1754080256738,-151.0,0.00024979,2]
[376689358,1754080256747,-151.0,0.00024979,2]
[376689359,1754080256758,-151.0,0.00024979,2]
[376689360,1754080256767,-151.0,0.00024979,2]
[376689361,1754080256776,-151.0,0.00024979,2]
[376689362,1754080256785,-151.0,0.00024979,2]
[376689363,1754080256794,-151.0,0.00024979,2]
[376689364,1754080256804,-151.0,0.00024979,2]
[376689365,1754080256813,-151.0,0.00024979,2]
[376689366,1754080256823,-151.0,0.00024979,2]
[376689367,1754080256832,-151.0,0.00024979,2]
[376689368,1754080256926,-151.0,0.00024979,2]
[376689369,1754080256936,-2030.296672,0.00024979,2]
[376689370,1754080256946,-151.0,0.00024979,2]
[376689371,1754080256955,-151.0,0.00024979,2]
[376689372,1754080256964,-151.0,0.00024979,2]
[376689373,1754080256974,-151.0,0.00024979,2]
[376689374,1754080256983,-151.0,0.00024979,2]
[376689375,1754080256992,-151.0,0.00024979,2]
[376689376,1754080257001,-151.0,0.00024979,2]
[376689377,1754080257011,-151.0,0.00024979,2]
[376689378,1754080257020,-151.0,0.00024979,2]
[376689379,1754080257030,-151.0,0.00024979,2]
[376689380,1754080257040,-151.0,0.00024979,2]
[376689381,1754080257049,-151.0,0.00024979,2]
[376689382,1754080257059,-151.0,0.00024979,2]
[376689383,1754080257068,-151.0,0.00024979,2]
[376689384,1754080257078,-151.0,0.00024979,2]
[376689385,1754080257087,-151.0,0.00024979,2]
[376689386,1754080257096,-151.0,0.00024979,2]
[376689387,1754080257105,-151.0,0.00024979,2]
[376689388,1754080257114,-151.0,0.00024979,2]
[376689389,1754080257124,-151.0,0.00024979,2]
[376689390,1754080257133,-151.0,0.00024979,2]
[376689391,1754080257142,-151.0,0.00024979,2]
[376689392,1754080257152,-151.0,0.00024979,2]
[376689393,1754080257161,-151.0,0.00024979,2]
[376689394,1754080257170,-151.0,0.00024979,2]
[376689395,1754080257180,-211.61,0.00024999,7]
[376689396,1754080257189,-20325.37740592,0.00025,2]
[376689397,1754080257229,-38761.0481417,0.00025,2]
[376689398,1754080257238,-15079.99,0.00025,2]
[376689399,1754080257247,-7515.56009684,0.00025,14]
[376689400,1754080257258,-823.0,0.00025026,2]
[376689401,1754080257267,-318.84,0.00025034,2]
[376689402,1754080257277,-500.0,0.00025035,2]
[376689403,1754080257285,-211.61,0.00025099,7]
[376689404,1754080257294,-634.94,0.00025107,2]
[376689405,1754080257304,-1066.84,0.00025107,2]
[376689406,1754080257313,-809.09,0.00025107,2]
[376689407,1754080257323,-465.79,0.00025107,2]
[376689408,1754080257332,-609.02,0.00025107,2]
[376689409,1754080257341,-721.93,0.00025107,2]
[376689410,1754080257351,-1206.45,0.00025107,2]
[376689411,1754080257360,-678.63,0.00025107,2]
[376689412,1754080257369,-739.17,0.00025107,2]
[376689413,1754080257379,-487.71,0.00025107,2]
[376689414,1754080257389,-460.0,0.00025107,2]
[376689415,1754080257399,-484.68,0.00025109,2]
[376689416,1754080257408,-1048.87,0.00025109,2]
[376689417,1754080257418,-492.99,0.00025109,2]
[376689418,1754080257432,-711.04175327,0.00025141,12]
[376689419,1754080257441,-267.0,0.00025197,6]
[376689420,1754080257451,-211.61,0.00025199,7]
[376689421,1754080257460,-1954.74,0.00025208,2]
[376689422,1754080257470,-460.0,0.00025209,2]
[376689423,1754080257479,-677.77,0.00025209,2]
[376689424,1754080257489,-151.0,0.00025209,7]
[376689425,1754080257499,-151.0,0.00025209,7]
[376689426,1754080257508,-151.0,0.00025209,7]
[376689427,1754080257517,-460.0,0.00025209,2]
[376689428,1754080257527,-3224.74,0.00025211,2]
[376689429,1754080257536,-2146.0,0.00025293,2]
[376689430,1754080257546,-970.0,0.00025293,2]
[376689431,1754080257555,-635.0,0.00025293,2]
[376689432,1754080257564,-407.0,0.00025293,2]
[376689433,1754080257572,-211.61,0.00025299,7]
[376689434,1754080257582,-634.94,0.00025381,2]
[376689435,1754080257591,-1066.84,0.00025381,2]
[376689436,1754080257600,-809.09,0.00025381,2]
[376689437,1754080257609,-465.79,0.00025381,2]
[376689438,1754080257619,-609.02,0.00025381,2]
[376689439,1754080257629,-721.93,0.00025381,2]
[376689440,1754080257640,-1206.45,0.00025381,2]
[376689441,1754080257651,-678.63,0.00025381,2]
[376689442,1754080257661,-739.17,0.00025381,2]
[376689443,1754080257670,-487.71,0.00025381,2]
[376689444,1754080257679,-460.0,0.00025381,2]
[376689445,1754080257689,-484.68,0.00025383,2]
[376689446,1754080257698,-1048.87,0.00025383,2]
[376689447,1754080257707,-492.99,0.00025383,2]
[376689448,1754080257716,-211.61,0.00025399,7]
[376689449,1754080257726,-711.04175327,0.00025417,13]
[376689450,1754080257735,-250.0,0.00025441,2]
[376689451,1754080257744,-267.0,0.0002548,6]
[376689452,1754080257755,-1954.74,0.00025482,2]
[376689453,1754080257764,-460.0,0.00025483,2]
[376689454,1754080257774,-677.77,0.00025483,2]
[376689455,1754080257783,-398.6206088,0.00025483,2]
[376689456,1754080257792,-3224.74,0.00025485,2]
[376689457,1754080257802,-211.61,0.00025499,7]
[376689458,1754080257811,-1357.92,0.000255,7]
[376689459,1754080257820,-211.61,0.00025599,7]
[376689460,1754080257830,-151.0,0.000256,12]
[376689461,1754080257839,-4527.92,0.000256,7]
[376689462,1754080257849,-781.84,0.000256,7]
[376689463,1754080257857,-635.06239284,0.00025655,2]
[376689464,1754080257867,-1066.90586202,0.00025655,2]
[376689465,1754080257877,-809.10894296,0.00025655,2]
[376689466,1754080257886,-465.9,0.00025655,2]
[376689467,1754080257895,-609.2320888,0.00025655,2]
[376689468,1754080257904,-722.05827621,0.00025655,2]
[376689469,1754080257914,-1206.59,0.00025655,2]
[376689470,1754080257924,-678.70800743,0.00025655,2]
[376689471,1754080257933,-739.32,0.00025655,2]
[376689472,1754080257943,-487.78635366,0.00025655,2]
[376689473,1754080257952,-163.20890294,0.00025655,2]
[376689474,1754080257962,-484.84,0.00025656,2]
[376689475,1754080257971,-1048.97235265,0.00025656,2]
[376689476,1754080257981,-493.02,0.00025656,2]
[376689477,1754080257991,-711.04175327,0.00025693,13]
[376689478,1754080258000,-211.61,0.00025699,7]
[376689479,1754080258012,-161.1565595,0.00025756,2]
[376689480,1754080258021,-677.82014089,0.00025756,2]
[376689481,1754080258030,-1954.82426357,0.00025756,2]
[376689482,1754080258040,-3224.74,0.00025759,2]
[376689483,1754080258050,-267.0,0.00025763,7]
[376689484,1754080258059,-500.0,0.00025774,2]
[376689485,1754080258070,-211.61,0.00025799,7]
[376689486,1754080258080,-211.61,0.00025899,7]
[376689487,1754080258090,-240.44001904,0.00025947,2]
[376689488,1754080258100,-711.04175327,0.00025969,14]
[376689489,1754080258109,-211.61,0.00025999,7]
[376689490,1754080258118,-33502.8480327,0.00026,2]
[376689491,1754080258127,-25133.14880963,0.00026,30]
[376689492,1754080258137,-3224.83991281,0.00026033,2]
[376689493,1754080258146,-267.0,0.00026046,7]
[376689494,1754080258156,-211.61,0.00026099,7]
[376689495,1754080258165,-500.0,0.00026102,2]
[376689496,1754080258175,-200.0,0.00026121,15]
[376689497,1754080258185,-200.0,0.00026121,15]
[376689498,1754080258195,-200.0,0.00026121,15]
[376689499,1754080258204,-200.0,0.00026121,15]
[376689500,1754080258214,-200.0,0.00026121,15]
[376689501,1754080258223,-200.0,0.00026121,15]
[376689502,1754080258232,-200.0,0.00026121,15]
[376689503,1754080258242,-200.0,0.00026121,15]
[376689504,1754080258253,-200.0,0.00026121,15]
[376689505,1754080258264,-394.0,0.00026121,15]
[376689506,1754080258274,-860.2785724,0.00026192,2]
[376689507,1754080258284,-211.61,0.00026199,7]
[376689508,1754080258294,-711.04175327,0.00026245,14]
[376689509,1754080258304,-211.61,0.00026299,7]
[376689510,1754080258314,-1155.9649899,0.00026329,2]
[376689511,1754080258323,-267.0,0.00026329,7]
[376689512,1754080258333,-781.49803773,0.00026349,2]
[376689513,1754080258343,-211.61,0.00026399,7]
[376689514,1754080258352,-151.0,0.000264,11]
[376689515,1754080258362,-15079.99,0.000264,2]
[376689516,1754080258372,-157.718329,0.00026413,11]
[376689517,1754080258381,-157.718329,0.00026417,11]
[376689518,1754080258390,-500.0,0.0002644,2]
[376689519,1754080258399,-211.61,0.00026499,7]
[376689520,1754080258409,-711.04175327,0.00026521,15]
[376689521,1754080258420,-157.718329,0.00026535,3]
[376689522,1754080258430,-4000.0,0.00026581,4]
[376689523,1754080258440,-211.61,0.00026599,7]
[376689524,1754080258449,-267.0,0.00026612,7]
[376689525,1754080258459,-827.00479046,0.00026617,2]
[376689526,1754080258469,-826.07499999,0.00026617,2]
[376689527,1754080258479,-157.718329,0.00026623,2]
[376689528,1754080258488,-1929.27352534,0.00026689,11]
[376689529,1754080258509,-460.0,0.00019355,2]
[376689530,1754080258519,-5167.29647466,0.00026689,11]
[376689531,1754080258528,-211.61,0.00026699,7]
[376689532,1754080258538,-157.718329,0.000267,7]
[376689533,1754080258547,-157.06113176,0.00026737,2]
[376689534,1754080258557,-711.04175327,0.00026797,15]
[376689535,1754080258567,-211.61,0.00026799,7]
[376689536,1754080258576,-246.0895008,0.00026805,2]
[376689537,1754080258656,-153.0,0.00026805,2]
[376689538,1754080258674,-400.2627069,0.00026805,2]
[376689539,1754080258696,-426.496133,0.00026805,2]
[376689540,1754080258712,-159.4497964,0.00026805,2]
[376689541,1754080258722,-153.0,0.00026805,2]
[376689542,1754080258731,-153.0,0.00026805,2]
[376689543,1754080258740,-153.0,0.00026805,2]
[376689544,1754080258750,-153.0,0.00026805,2]
[376689545,1754080258759,-153.0,0.00026805,2]
[376689546,1754080258768,-267.0,0.00026895,7]
[376689547,1754080258778,-211.61,0.00026899,7]
[376689548,1754080258787,-662.35679684,0.00026998,2]
[376689549,1754080258957,-665.13,0.00019355,2]
[376689550,1754080258967,-665.13,0.00019355,2]
[376689551,1754080258976,-460.0,0.00019629,2]
[376689552,1754080258986,-484.77359874,0.00019903,2]
[376689553,1754080258995,-460.0,0.00020177,2]
[376689554,1754080259006,-536.80297638,0.00020451,2]
[376689555,1754080259015,-1045.88143924,0.00020897,2]
[376689556,1754080259025,-665.13,0.00022419,2]
[376689557,1754080259034,-511.24,0.00022644,2]
[376689558,1754080259043,-151.0,0.00022915,7]
[376689559,1754080259052,-511.24,0.00023288,2]
[376689560,1754080259062,-511.24,0.00024,2]
[376689561,1754080259071,-12228.84,0.00024286,2]
[376689562,1754080259080,-12228.84,0.0002456,2]
[376689563,1754080259089,-511.24,0.00024577,2]
[376689564,1754080259098,-12228.84,0.00024833,2]
[376689565,1754080259107,-151.0,0.000249,7]
[376689566,1754080259116,-12228.84,0.00025107,2]
[376689567,1754080259124,-57722.88103245,0.00026998,2]
[376689568,1754080259197,-454.37241082,0.00025051,2]
[376689569,1754080259207,-87.27758918,0.00025221,7]
[376689570,1754080259253,-423.96241082,0.00025221,7]
[376689571,1754080259262,-1015.51013243,0.00025381,2]
[376689572,1754080259274,-5668.17449051,0.00025381,2]
[376689573,1754080259349,1342.38014762,0.000192,2]
[376689574,1754080262351,2057.26994458,0.000192,2]
[376689576,1754080270183,3705.08534767,0.000192,2]
[376689577,1754080335441,252.68056605,0.00018774,2]
[376689581,1754080409776,159.503501,0.00013699,2]
[376689585,1754080543458,203.28126122,0.00019144,2]
[376689586,1754080610054,187.066143,0.00018425,2]
[376689587,1754080896804,2667.2932125,0.00018254,2]
[376689588,1754080967348,2000.0,0.00027132,30]
[376689589,1754080967894,2000.0,0.00027132,30]
[376689590,1754080968174,400.2,0.00027132,30]
[376689595,1754081258953,-274.0038783,0.00019208,2]
[376689597,1754081389402,159.503501,0.00013699,2]
[376689600,1754081406091,326.18109383,0.00019153,2]
[376689646,1754081437971,-202.69975959,0.00019244,2]
[376689647,1754081437980,-658.65260554,0.00019244,2]
[376689648,1754081437990,-357.82,0.00019245,3]
[376689649,1754081437999,-178.52276079,0.00019245,3]
[376689650,1754081438023,-0.38723921,0.00019245,3]
[376689651,1754081438031,-536.77,0.00019245,3]
[376689652,1754081438040,-25.03568059,0.00019251,2]
[376689653,1754081438080,-274.96431941,0.00019251,2]
[376689654,1754081438089,-460.0,0.00019252,2]
[376689655,1754081438098,-460.0,0.00019252,2]
[376689656,1754081438107,-683.07,0.00019252,2]
[376689657,1754081438117,-460.0,0.00019252,2]
[376689658,1754081438126,-460.0,0.00019253,2]
[376689659,1754081438135,-460.0,0.00019253,2]
[376689660,1754081438145,-407.12111252,0.00019253,2]
[376689661,1754081438156,-460.0,0.00019253,2]
[376689662,1754081438165,-335.02941067,0.00019253,2]
[376689665,1754081438177,-610.52058933,0.00019253,2]
[376689666,1754081438186,-460.0,0.00019253,2]
[376689667,1754081438195,-254.75585997,0.00019253,2]
[376689669,1754081438207,-205.24414003,0.00019253,2]
[376689671,1754081438221,-224.57766198,0.00019253,2]
[376689693,1754081438413,-139.08250431,0.00019253,2]
[376689695,1754081438422,-1157.78108365,0.00019253,2]
[376689701,1754081438469,-43.58891635,0.00019253,2]
[376689703,1754081438478,-460.0,0.00019253,2]
[376689705,1754081438487,-1493.73884678,0.00019253,2]
[376689707,1754081438499,-1685.45171951,0.00019253,2]
[376689711,1754081438524,-7140.56937081,0.00019253,2]
[376689731,1754081438692,-1237.29158653,0.00019253,2]
[376689733,1754081438702,-460.0,0.00019253,2]
[376689735,1754081438713,-460.0,0.00019253,2]
[376689737,1754081438723,-460.0,0.00019253,2]
[376689739,1754081438733,-460.0,0.00019253,2]
[376689741,1754081438743,-460.0,0.00019253,2]
[376689743,1754081438754,-2656.74,0.00019253,2]
[376689745,1754081438763,-460.0,0.00019253,2]
[376689747,1754081438775,-460.0,0.00019253,2]
[376689749,1754081438784,-460.0,0.00019253,2]
[376689751,1754081438793,-460.0,0.00019253,2]
[376689753,1754081438802,-460.0,0.00019253,2]
[376689755,1754081438812,-460.0,0.00019253,2]
[376689757,1754081438822,-460.0,0.00019253,2]
[376689759,1754081438831,-460.0,0.00019253,2]
[376689761,1754081438841,-460.0,0.00019253,2]
[376689762,1754081438851,-460.0,0.00019253,2]
[376689765,1754081438863,-460.0,0.00019253,2]
[376689767,1754081438874,-460.0,0.00019253,2]
[376689769,1754081438883,-460.0,0.00019253,2]
[376689770,1754081438893,-460.0,0.00019253,2]
[376689772,1754081438902,-500.0,0.00019253,2]
[376689774,1754081438912,-460.0,0.00019253,2]
[376689776,1754081438921,-460.0,0.00019253,2]
[376689777,1754081438930,-460.0,0.00019253,2]
[376689778,1754081438941,-460.0,0.00019253,2]
[376689779,1754081438951,-460.0,0.00019253,2]
[376689780,1754081438963,-460.0,0.00019253,2]
[376689781,1754081438973,-460.0,0.00019254,2]
[376689782,1754081438983,-972.77,0.00019254,2]
[376689783,1754081438992,-460.0,0.00019254,2]
[376689784,1754081439001,-500.0,0.00019254,2]
[376689786,1754081439011,-292.33262822,0.00019254,2]
[376689788,1754081439020,-500.0,0.00019254,2]
[376689790,1754081439029,-500.0,0.00019254,2]
[376689792,1754081439039,-500.0,0.00019254,2]
[376689794,1754081439048,-500.0,0.00019254,2]
[376689796,1754081439057,-500.0,0.00019254,2]
[376689798,1754081439067,-500.0,0.00019254,2]
[376689800,1754081439076,-500.0,0.00019254,2]
[376689802,1754081439085,-500.0,0.00019254,2]
[376689804,1754081439095,-262.57086125,0.00019254,2]
[376689806,1754081439105,-500.0,0.00019254,2]
[376689808,1754081439114,-500.0,0.00019254,2]
[376689810,1754081439123,-474.3007626,0.00019254,2]
[376689812,1754081439132,-164.58006228,0.00019254,2]
[376689814,1754081439142,-500.0,0.00019254,2]
[376689817,1754081439151,-263.11100012,0.00019254,2]
[376689819,1754081439161,-500.0,0.00019254,2]
[376689821,1754081439170,-500.0,0.00019254,2]
[376689822,1754081439179,-500.0,0.00019254,2]
[376689824,1754081439188,-500.0,0.00019254,2]
[376689826,1754081439197,-500.0,0.00019254,2]
[376689828,1754081439206,-500.0,0.00019254,2]
[376689830,1754081439216,-300.0,0.00019254,2]
[376689832,1754081439225,-500.0,0.00019254,2]
[376689834,1754081439234,-250.0,0.00019254,2]
[376689836,1754081439243,-317.9712607,0.00019254,2]
[376689838,1754081439252,-500.0,0.00019254,2]
[376689840,1754081439262,-263.51440671,0.00019254,2]
[376689842,1754081439271,-196.56735665,0.00019254,2]
[376689844,1754081439280,-500.0,0.00019254,2]
[376689846,1754081439289,-237.32746879,0.00019254,2]
[376689848,1754081439298,-370000.0,0.00019255,2]
[376689850,1754081439308,-460.0,0.00019353,2]
[376689867,1754081439461,-460.0,0.00019353,2]
[376689869,1754081439470,-475.36339941,0.00019353,2]
[376689871,1754081439479,-460.0,0.00019353,2]
[376689873,1754081439489,-460.0,0.00019353,2]
[376689875,1754081439498,-305.02272251,0.00019353,2]
[376689877,1754081439507,-460.0,0.00019353,2]
[376689879,1754081439517,-460.0,0.00019353,2]
[376689881,1754081439526,-460.0,0.00019353,2]
[376689883,1754081439539,-460.0,0.00019353,2]
[376689885,1754081439557,-460.0,0.00019353,2]
[376689887,1754081439578,-409.01186619,0.00019353,2]
[376689889,1754081439595,-460.0,0.00019353,2]
[376689891,1754081439604,-500.0,0.00019353,2]
[376689893,1754081439614,-500.0,0.00019353,2]
[376689895,1754081439623,-460.0,0.00019353,2]
[376689897,1754081439633,-477.92,0.00019353,2]
[376689899,1754081439643,-460.0,0.00019353,2]
[376689901,1754081439652,-209.29479691,0.00019353,2]
[376689903,1754081439661,-460.0,0.00019353,2]
[376689905,1754081439671,-460.0,0.00019353,2]
[376689907,1754081439680,-460.0,0.00019353,2]
[376689910,1754081439690,-460.0,0.00019353,2]
[376689911,1754081439700,-460.0,0.00019353,2]
[376689914,1754081439711,-500.0,0.00019353,2]
[376689916,1754081439721,-460.0,0.00019353,2]
[376689917,1754081439731,-460.0,0.00019353,2]
[376689919,1754081439740,-460.0,0.00019353,2]
[376689921,1754081439749,-460.0,0.00019353,2]
[376689924,1754081439759,-460.0,0.00019353,2]
[376689926,1754081439769,-460.0,0.00019353,2]
[376689927,1754081439782,-460.0,0.00019353,2]
[376689930,1754081439792,-261.72744388,0.00019354,2]
[376689932,1754081439801,-460.0,0.00019354,2]
[376689933,1754081439810,-460.0,0.00019354,2]
[376689935,1754081439821,-460.0,0.00019354,2]
[376689938,1754081439831,-460.0,0.00019354,2]
[376689940,1754081439840,-460.0,0.00019354,2]
[376689942,1754081439851,-460.0,0.00019354,2]
[376689944,1754081439860,-500.0,0.00019354,2]
[376689945,1754081439869,-500.0,0.00019354,2]
[376689947,1754081439878,-500.0,0.00019354,2]
[376689949,1754081439888,-460.0,0.00019354,2]
[376689952,1754081439897,-460.0,0.00019354,2]
[376689953,1754081439907,-462.0454725,0.00019354,2]
[376689955,1754081439916,-460.0,0.00019354,2]
[376689957,1754081439926,-460.0,0.00019354,2]
[376689959,1754081439935,-460.0,0.00019354,2]
[376689961,1754081439944,-460.0,0.00019354,2]
[376689963,1754081439953,-460.0,0.00019354,2]
[376689965,1754081439962,-460.0,0.00019354,2]
[376689967,1754081439971,-336.14256286,0.00019354,2]
[376689969,1754081439980,-460.0,0.00019354,2]
[376689971,1754081439989,-460.0,0.00019355,2]
[376689973,1754081439999,-460.0,0.00019355,2]
[376689975,1754081440008,-460.0,0.00019355,2]
[376689977,1754081440018,-460.0,0.00019355,2]
[376689979,1754081440027,-847.61,0.00019355,2]
[376689982,1754081440037,-460.0,0.00019355,2]
[376689984,1754081440047,-1171.57,0.00019355,2]
[376689987,1754081440056,-500.0,0.00019355,2]
[376689989,1754081440066,-500.0,0.00019355,2]
[376689991,1754081440074,-500.0,0.00019355,2]
[376689993,1754081440083,-500.0,0.00019355,2]
[376689995,1754081440093,-500.0,0.00019355,2]
[376689997,1754081440102,-500.0,0.00019355,2]
[376689999,1754081440111,-500.0,0.00019355,2]
[376690001,1754081440120,-500.0,0.00019355,2]
[376690003,1754081440129,-500.0,0.00019355,2]
[376690005,1754081440139,-460.0,0.00019355,2]
[376690007,1754081440148,-1910.42,0.00019355,2]
[376690009,1754081440157,-460.0,0.00019355,2]
[376690011,1754081440166,-460.0,0.00019355,2]
[376690013,1754081440176,-747.22,0.00019355,2]
[376690016,1754081440185,-500.0,0.00019454,2]
[376690018,1754081440194,-500.0,0.00019454,2]
[376690019,1754081440203,-500.0,0.00019454,2]
[376690021,1754081440212,-460.0,0.00019454,2]
[376690023,1754081440222,-465.09,0.00019454,2]
[376690025,1754081440231,-404.93819947,0.00019526,2]
[376690027,1754081440240,-301.54958946,0.00019526,2]
[376690029,1754081440249,-683.07,0.00019526,2]
[376690031,1754081440259,-460.0,0.00019526,2]
[376690033,1754081440268,-460.0,0.00019527,2]
[376690035,1754081440277,-460.0,0.00019527,2]
[376690037,1754081440286,-945.55,0.00019527,2]
[376690039,1754081440295,-460.0,0.00019527,2]
[376690041,1754081440304,-460.0,0.00019527,2]
[376690043,1754081440314,-1201.37,0.00019527,2]
[376690045,1754081440323,-460.0,0.00019527,2]
[376690048,1754081440332,-460.0,0.00019527,2]
[376690049,1754081440342,-460.0,0.00019527,2]
[376690051,1754081440351,-460.0,0.00019527,2]
[376690054,1754081440360,-2656.74,0.00019527,2]
[376690056,1754081440370,-460.0,0.00019527,2]
[376690057,1754081440379,-460.0,0.00019527,2]
[376690060,1754081440388,-460.0,0.00019527,2]
[376690061,1754081440397,-460.0,0.00019527,2]
[376690063,1754081440406,-515.42,0.00019527,2]
[376690065,1754081440415,-460.0,0.00019527,2]
[376690067,1754081440425,-460.0,0.00019527,2]
[376690069,1754081440434,-460.0,0.00019527,2]
[376690072,1754081440443,-460.0,0.00019527,2]
[376690073,1754081440452,-460.0,0.00019527,2]
[376690076,1754081440462,-460.0,0.00019527,2]
[376690077,1754081440471,-460.0,0.00019527,2]
[376690079,1754081440481,-460.0,0.00019527,2]
[376690081,1754081440490,-460.0,0.00019527,2]
[376690083,1754081440499,-460.0,0.00019527,2]
[376690085,1754081440507,-460.0,0.00019527,2]
[376690088,1754081440517,-460.0,0.00019527,2]
[376690090,1754081440526,-460.0,0.00019527,2]
[376690092,1754081440536,-460.0,0.00019528,2]
[376690094,1754081440546,-972.77,0.00019528,2]
[376690096,1754081440555,-460.0,0.00019528,2]
[376690098,1754081440564,-460.0,0.00019627,2]
[376690100,1754081440573,-460.0,0.00019627,2]
[376690101,1754081440583,-460.0,0.00019627,2]
[376690104,1754081440593,-460.0,0.00019627,2]
[376690106,1754081440603,-460.0,0.00019627,2]
[376690108,1754081440613,-460.0,0.00019627,2]
[376690110,1754081440622,-460.0,0.00019627,2]
[376690112,1754081440631,-460.0,0.00019627,2]
[376690113,1754081440640,-500.0,0.00019627,2]
[376690115,1754081440649,-477.92,0.00019627,2]
[376690117,1754081440658,-460.0,0.00019627,2]
[376690119,1754081440667,-460.0,0.00019627,2]
[376690121,1754081440676,-460.0,0.00019627,2]
[376690123,1754081440686,-460.0,0.00019627,2]
[376690125,1754081440695,-460.0,0.00019627,2]
[376690127,1754081440704,-460.0,0.00019627,2]
[376690129,1754081440716,-460.0,0.00019627,2]
[376690131,1754081440726,-460.0,0.00019628,2]
[376690133,1754081440735,-460.0,0.00019628,2]
[376690135,1754081440744,-460.0,0.00019628,2]
[376690137,1754081440753,-500.0,0.00019628,2]
[376690139,1754081440762,-477.18,0.00019628,2]
[376690141,1754081440773,-460.0,0.00019628,2]
[376690144,1754081440785,-460.0,0.00019628,2]
[376690146,1754081440795,-460.0,0.00019628,2]
[376690148,1754081440805,-460.0,0.00019628,2]
[376690149,1754081440815,-234.00859629,0.00019628,2]
[376690152,1754081440824,-460.0,0.00019628,2]
[376690153,1754081440834,-544.75,0.00019628,2]